bitfinex-derivatives/quotes_SOLF0:USTF0_20220110
["timestamp","ask_amount","ask_price","bid_price","bid_amount"]
[1641837711760,4.0,133.1,133.0,9.39155946]
[1641837711959,6.01121248,133.09,133.0,7.51455946]
[1641837712162,27.66479,133.05,133.0,7.51455946]
[1641837712361,34.76179,133.05,133.0,7.51455946]
[1641837712563,7.097,133.05,133.0,7.51455946]
[1641837712964,15.87324992,133.09,133.0,7.51455946]
[1641837713562,15.87324992,133.1,133.0,7.51455946]
[1641837713764,15.87324992,133.1,133.01,20.0]
[1641837714167,43.53803992,133.1,133.0,1.877]
[1641837714366,4.0,133.08,132.98,7.515689]
[1641837714565,4.0,133.04,132.98,7.515689]
[1641837714767,4.0,133.02,132.96,15.87324992]
[1641837714968,10.0148992,133.01,132.93,41.38679543]
[1641837715167,4.0,132.96,132.93,41.38679543]
[1641837715366,4.0,132.95,132.87,41.38679543]
[1641837715667,6.01619889,132.98,132.87,41.38679543]
[1641837715668,4.0,132.93,132.87,41.38679543]
[1641837715867,4.0,132.92,132.87,41.38679543]
[1641837716065,27.66479,132.9,132.87,41.38679543]
[1641837716466,27.66479,132.92,132.87,41.38679543]
[1641837716664,7.5233223,132.98,132.87,41.38679543]
[1641837716665,10.01616234,132.98,132.87,41.38679543]
[1641837716865,6.01616234,132.98,132.9,7.51964507]
[1641837717065,2.72185938,133.03,132.9,7.51964507]
[1641837717066,2.72185938,132.94,132.9,7.51964507]
[1641837717565,2.72185938,132.94,132.89,1.879]
[1641837717765,2.72185938,132.94,132.86,30.09293109]
[1641837717965,2.72185938,132.94,132.87,1.881]
[1641837718165,27.66479,132.99,132.87,29.54579]
[1641837718865,4.0,132.97,132.87,1.881]
[1641837719066,4.0,132.96,132.88,2.56878818]
[1641837719867,4.0,132.94,132.85,2.56878818]
[1641837720068,27.66479,132.92,132.85,2.56878818]
[1641837720272,4.0,132.88,132.85,2.56878818]
[1641837720469,4.0,132.87,132.85,2.56878818]
[1641837720671,4.0,132.88,132.85,2.56878818]
[1641837720872,27.66479,132.92,132.8,31.52530383]
[1641837721070,33.68279026,132.94,132.84,7.52303931]
[1641837721270,41.38679543,132.97,132.84,7.52303931]
[1641837721471,41.38679543,132.97,132.85,1.881]
[1641837721671,41.38679543,132.97,132.85,21.881]
[1641837721872,41.38679543,133.0,132.88,7.52077614]
[1641837722071,27.66479,132.97,132.88,27.66479]
[1641837723673,27.66479,132.97,132.86,27.66479]
[1641837723674,33.68137285,132.97,132.86,27.66479]
[1641837723874,4.0,132.93,132.82,41.38679543]
[1641837724074,29.68790662,132.91,132.83,27.66479]
[1641837724276,33.68790662,132.91,132.82,41.38679543]
[1641837724673,29.68790662,132.91,132.81,30.23113982]
[1641837725674,4.0,132.88,132.81,2.56634982]
[1641837725874,6.02125769,132.87,132.82,2.56634982]
[1641837726076,27.66479,132.85,132.82,2.56634982]
[1641837726477,4.0,132.84,132.82,4.982e-05]
[1641837726678,4.0,132.83,132.82,4.982e-05]
[1641837726875,6.02249819,132.84,132.75,27.66479]
[1641837727189,8.949,132.83,132.73,27.66479]
[1641837727375,12.949,132.83,132.73,27.66479]
[1641837727574,8.949,132.83,132.73,27.66479]
[1641837727775,4.0,132.82,132.73,27.66479]
[1641837727977,4.0,132.8,132.72,41.38679543]
[1641837728178,27.66479,132.75,132.72,41.38679543]
[1641837728677,27.66479,132.75,132.68,69.05158543]
[1641837728876,31.66479,132.75,132.68,41.38679543]
[1641837729076,4.0,132.73,132.68,41.38679543]
[1641837729277,35.27679,132.75,132.68,41.38679543]
[1641837729776,7.612,132.75,132.68,41.38679543]
[1641837730177,27.66479,132.77,132.66,27.66479]
[1641837730382,27.66479,132.77,132.7,7.53068755]
[1641837730580,8.67162086,132.85,132.68,24.0]
[1641837730782,12.67162086,132.85,132.71,7.53012048]
[1641837731183,11.22699739,132.84,132.71,7.53012048]
[1641837731381,4.0,132.82,132.69,4.0]
[1641837731581,4.0,132.81,132.68,31.53182195]
[1641837731983,7.22699739,132.84,132.73,7.52927004]
[1641837732283,27.66479,132.86,132.75,27.66479]
[1641837732484,27.66479,132.86,132.73,27.66479]
[1641837732682,4.0,132.85,132.73,27.66479]
[1641837732883,4.0,132.81,132.68,7.5321056]
[1641837733087,11.53380796,132.8,132.65,9.41480796]
[1641837733283,4.0,132.8,132.64,21.883]
[1641837733484,6.0236454,132.81,132.7,7.53097112]
[1641837733685,2.02573947,132.74,132.7,7.53097112]
[1641837733884,3.947e-05,132.74,132.68,24.0]
[1641837734084,3.947e-05,132.74,132.73,27.66479]
[1641837734884,3.947e-05,132.74,132.73,51.66479]
[1641837735283,3.947e-05,132.74,132.73,27.66479]
[1641837736285,3.947e-05,132.74,132.73,35.19406004]
[1641837736683,3.947e-05,132.74,132.73,27.66479]
[1641837737985,7.53238927,132.82,132.73,27.66479]
[1641837738185,27.66479,132.81,132.73,27.66479]
[1641837739386,27.66479,132.81,132.73,31.66479]
[1641837739587,27.66479,132.81,132.73,47.66479]
[1641837739789,27.66479,132.81,132.73,27.66479]
[1641837740187,27.66479,132.83,132.73,27.66479]
[1641837740390,33.68784953,132.83,132.73,27.66479]
[1641837741789,33.68784953,132.83,132.73,35.1937766]
[1641837741990,27.66479,132.83,132.76,4.0]
[1641837742189,1.82003284,132.84,132.78,27.66479]
[1641837742390,1.82003284,132.84,132.78,51.66479]
[1641837742789,1.82003284,132.84,132.8,24.0]
[1641837743193,27.66479,132.88,132.78,53.54579]
[1641837743390,27.66479,132.88,132.78,49.54579]
[1641837743591,2.02274173,132.8,132.78,29.54579]
[1641837743790,27.66479,132.88,132.79,24.0]
[1641837743992,27.66479,132.88,132.78,29.54579]
[1641837744290,27.66479,132.88,132.81,27.66479]
[1641837744994,27.66479,132.9,132.81,27.66479]
[1641837745897,7.22087171,132.95,132.83,7.52360531]
[1641837746092,15.81187378,132.96,132.83,9.40460531]
[1641837746292,15.81187378,132.96,132.84,20.0]
[1641837746493,15.81187378,132.96,132.84,24.0]
[1641837746694,27.66479,132.95,132.86,27.66479]
[1641837747294,27.66479,132.97,132.86,51.66479]
[1641837747494,15.81187378,132.98,132.88,7.52077614]
[1641837747894,15.81187378,133.01,132.88,31.52077614]
[1641837748096,15.81187378,133.01,132.9,24.0]
[1641837748494,15.81187378,133.01,132.91,4.0]
[1641837748694,27.66479,133.0,132.91,31.66479]
[1641837748894,27.66479,133.0,132.91,29.54379]
[1641837749294,27.66479,133.0,132.91,27.66479]
[1641837751197,31.66479,133.0,132.91,27.66479]
[1641837751600,27.66479,133.0,132.91,27.66479]
[1641837752000,6.01477726,133.01,132.91,27.66479]
[1641837752201,15.81187378,133.04,132.93,7.51766652]
[1641837752398,15.81187378,133.04,132.94,20.0]
[1641837752598,15.81187378,133.03,132.95,4.0]
[1641837752798,15.81187378,133.03,133.0,27.66479]
[1641837752998,15.81187378,133.03,132.94,1.879]
[1641837753198,4.0,133.0,132.94,1.879]
[1641837753398,4.0,133.0,132.9,1.879]
[1641837753597,4.0,133.0,132.89,7.51992781]
[1641837754200,6.01497321,133.01,132.92,4.26090672]
[1641837754798,33.67976321,133.01,132.92,4.26090672]
[1641837755700,27.66479,133.01,132.92,4.26090672]
[1641837756803,6.01528404,133.0,132.92,4.26090672]
[1641837757001,10.01528404,133.0,132.92,4.26090672]
[1641837757201,4.0,132.95,132.92,4.26090672]
[1641837757400,6.01766948,132.95,132.92,4.26090672]
[1641837757602,10.01766948,132.95,132.92,4.26090672]
[1641837757803,10.01766948,132.95,132.84,7.52303931]
[1641837758004,4.0,132.93,132.84,7.52303931]
[1641837758202,6.01766948,132.95,132.84,7.52303931]
[1641837758604,6.01766948,132.95,132.93,4.26077002]
[1641837758802,6.01766948,132.95,132.85,27.66479]
[1641837758803,27.66479,132.94,132.85,27.66479]
[1641837761205,71.8649,132.98,132.85,27.66479]
[1641837761405,7.2190298,132.99,132.85,27.66479]
[1641837761406,7.2190298,132.99,132.87,7.52134181]
[1641837761606,7.2190298,132.99,132.86,9.40090756]
[1641837761806,7.2190298,132.99,132.87,24.0]
[1641837762208,11.2190298,132.99,132.87,20.0]
[1641837762607,7.2190298,132.99,132.87,20.0]
[1641837762810,7.2190298,132.99,132.89,27.66479]
[1641837763008,34.8838198,132.99,132.89,27.66479]
[1641837763909,2.8170754,132.93,132.89,27.66479]
[1641837764109,2.8170754,132.93,132.9,24.0]
[1641837765010,27.66479,133.01,132.92,51.66479]
[1641837765310,15.81187378,133.03,132.92,55.18302171]
[1641837765509,15.81187378,133.03,132.93,5.879]
[1641837765809,15.81187378,133.05,132.93,1.879]
[1641837766008,15.81187378,133.05,132.94,24.0]
[1641837766509,15.81187378,133.05,132.93,1.879]
[1641837766510,4.0,133.03,132.93,1.879]
[1641837766710,33.34463574,133.05,132.92,27.66479]
[1641837766912,27.66479,133.0,132.9,7.51964507]
[1641837767113,6.01311689,133.05,132.9,7.51964507]
[1641837767313,15.81187378,133.08,132.93,20.0]
[1641837767511,15.81187378,133.08,132.99,7.51455946]
[1641837767912,15.81187378,133.11,132.99,7.51455946]
[1641837768813,15.81187378,133.11,133.0,20.0]
[1641837769015,27.66479,133.09,133.02,27.66479]
[1641837770117,27.66479,133.09,132.99,11.51455946]
[1641837770118,1.681062,133.04,132.96,1.877]
[1641837770615,1.681062,133.04,132.95,7.51653638]
[1641837771016,1.681062,133.04,132.97,27.66479]
[1641837771515,1.681062,133.04,132.94,24.25884688]
[1641837771814,1.681062,133.04,132.94,31.77623083]
[1641837772618,1.681062,133.04,132.95,1.879]
[1641837772917,1.681062,133.04,132.98,27.66479]
[1641837773921,1.681062,133.04,132.98,47.66479]
[1641837774323,27.66479,133.06,132.98,47.66479]
[1641837774620,27.66479,133.06,132.98,27.66479]
[1641837775621,4.0,133.03,132.95,1.879]
[1641837775822,8.73063321,133.05,132.95,4.26007152]
[1641837776022,2.71771628,133.05,132.95,4.26007152]
[1641837776223,2.71771628,133.05,132.96,20.0]
[1641837776424,2.71771628,133.05,132.95,4.26007152]
[1641837776624,4.0,133.03,132.95,4.26007152]
[1641837776824,6.01421427,133.02,132.95,4.26007152]
[1641837777026,27.66479,133.0,132.95,4.26007152]
[1641837777226,4.0,132.99,132.95,7.152e-05]
[1641837777424,6.01611712,132.98,132.95,7.152e-05]
[1641837777623,13.53943942,132.98,132.95,7.152e-05]
[1641837777824,4.0,132.96,132.95,7.152e-05]
[1641837778023,6.01611712,132.98,132.95,7.152e-05]
[1641837778225,27.66479,133.0,132.95,7.152e-05]
[1641837780030,6.0163112,132.98,132.88,27.66479]
[1641837780327,6.0163112,132.98,132.96,4.25966965]
[1641837780529,10.0163112,132.98,132.96,4.25966965]
[1641837780727,4.0,132.97,132.96,4.25966965]
[1641837780927,31.66479,132.97,132.96,4.25966965]
[1641837781427,31.66479,132.97,132.86,7.52190756]
[1641837781627,4.0,132.96,132.86,7.52190756]
[1641837781827,27.66479,132.97,132.86,7.52190756]
[1641837782427,27.66479,132.97,132.87,2.56611237]
[1641837782631,27.66479,132.97,132.88,24.0]
[1641837782927,43.47666378,133.0,132.91,27.66479]
[1641837783332,3.25062897,132.99,132.91,27.66479]
[1641837783631,3.25062897,132.99,132.93,4.0]
[1641837783833,3.25062897,132.99,132.93,7.532]
[1641837784032,3.25062897,132.99,132.93,11.532]
[1641837784233,3.25062897,132.99,132.93,7.532]
[1641837784533,3.25062897,132.99,132.92,1.879]
[1641837784734,3.25062897,132.99,132.91,27.66479]
[1641837784934,27.66479,132.98,132.89,31.9264242]
[1641837787436,27.66479,132.98,132.9,24.0]
[1641837787836,27.66479,132.98,132.91,4.0]
[1641837788035,27.66479,132.98,132.9,25.879]
[1641837788036,31.76675536,132.98,132.9,25.879]
[1641837788243,31.76675536,132.98,132.91,4.0]
[1641837788436,31.76675536,132.98,132.9,25.879]
[1641837788636,31.76675536,132.98,132.9,21.879]
[1641837788839,31.76675536,132.98,132.9,1.879]
[1641837789038,7.52445448,132.96,132.92,4.26123948]
[1641837789437,11.52445448,132.96,132.87,43.47666378]
[1641837789639,7.52445448,132.96,132.87,27.66479]
[1641837789838,11.52445448,132.96,132.87,27.66479]
[1641837790438,11.52445448,132.96,132.84,27.66479]
[1641837790638,6.7201486,132.95,132.84,27.66479]
[1641837791039,27.66479,132.93,132.84,27.66479]
[1641837792238,15.81187378,132.97,132.85,7.52247339]
[1641837792439,24.07168122,132.97,132.85,1.881]
[1641837792639,20.07168122,132.97,132.85,4.44827391]
[1641837793038,20.07168122,132.97,132.88,27.66479]
[1641837793238,24.07168122,132.97,132.88,27.66479]
[1641837793440,8.25980744,132.97,132.88,27.66479]
[1641837794240,4.25980744,132.97,132.89,20.0]
[1641837794439,5.45307986,132.95,132.9,7.51936236]
[1641837794739,5.45307986,132.95,132.9,9.39836236]
[1641837795039,27.66479,132.93,132.9,1.879]
[1641837795239,27.66479,132.93,132.86,43.47666378]
[1641837795839,31.66479,132.93,132.86,15.81187378]
[1641837796039,4.0,132.9,132.85,2.71659888]
[1641837796240,4.0,132.91,132.85,2.71659888]
[1641837796639,31.66479,132.93,132.85,2.71659888]
[1641837796841,33.11786986,132.95,132.85,2.71659888]
[1641837797242,48.92974364,132.95,132.85,2.71659888]
[1641837797443,21.26495364,132.95,132.86,27.52162467]
[1641837797642,21.26495364,132.95,132.86,7.52162467]
[1641837798044,31.28234135,132.95,132.85,4.59759888]
[1641837798242,4.0,132.9,132.85,2.71659888]
[1641837798443,6.01967637,132.9,132.85,2.71659888]
[1641837798842,7.22232896,132.93,132.85,2.71659888]
[1641837799043,4.26140834,132.96,132.87,27.66479]
[1641837799242,15.81187378,132.95,132.87,27.66479]
[1641837799442,21.82950637,132.95,132.91,3.1423762]
[1641837799642,25.82950637,132.95,132.91,7.62e-05]
[1641837800043,10.01833171,132.93,132.91,7.62e-05]
[1641837800242,10.01833171,132.93,132.82,27.66479]
[1641837800243,6.01951608,132.9,132.84,2.56584712]
[1641837800544,4.0,132.85,132.79,41.38679543]
[1641837800745,4.0,132.84,132.79,41.38679543]
[1641837801042,27.66479,132.82,132.79,41.38679543]
[1641837801442,27.66479,132.82,132.75,27.66479]
[1641837801642,27.66479,132.82,132.73,27.66479]
[1641837801843,4.0,132.87,132.73,35.19406004]
[1641837802042,4.0,132.87,132.77,7.52700312]
[1641837802444,4.0,132.87,132.75,7.52813641]
[1641837803043,27.66479,132.85,132.76,27.66479]
[1641837804344,31.66479,132.85,132.75,7.52813641]
[1641837804543,4.0,132.84,132.75,7.52813641]
[1641837804744,7.622,132.84,132.75,7.52813641]
[1641837805145,27.66479,132.83,132.75,7.52813641]
[1641837805346,27.66479,132.83,132.8,2.09125372]
[1641837805948,4.0,132.81,132.69,9.41253832]
[1641837806148,35.19661195,132.83,132.69,7.53153832]
[1641837806149,4.0,132.79,132.69,7.53153832]
[1641837806347,4.0,132.78,132.69,48.91833375]
[1641837806748,4.0,132.79,132.69,48.91833375]
[1641837806947,4.0,132.77,132.69,48.91833375]
[1641837807147,6.02430166,132.8,132.69,41.38679543]
[1641837807148,27.66479,132.76,132.69,41.38679543]
[1641837807349,27.66479,132.76,132.67,27.66479]
[1641837809248,27.66479,132.74,132.67,27.66479]
[1641837810249,31.66479,132.74,132.67,27.66479]
[1641837810449,27.66479,132.74,132.67,27.66479]
[1641837812349,27.66479,132.74,132.67,31.66479]
[1641837812551,11.53097112,132.85,132.7,11.53097112]
[1641837812750,4.0,132.84,132.7,11.53097112]
[1641837812950,4.0,132.84,132.7,7.53097112]
[1641837813152,27.66479,132.81,132.72,4.0]
[1641837813351,27.66479,132.81,132.71,27.66479]
[1641837813551,4.0,132.78,132.68,9.4151056]
[1641837813749,4.0,132.79,132.68,7.5321056]
[1641837813951,10.02493458,132.79,132.68,74.89807498]
[1641837814250,6.02493458,132.79,132.68,74.89807498]
[1641837814452,4.26692108,132.73,132.68,67.36596938]
[1641837814651,6.02784258,132.72,132.68,41.38679543]
[1641837814850,6.02784258,132.72,132.64,41.38679543]
[1641837815255,27.66479,132.71,132.64,41.38679543]
[1641837815453,6.02784258,132.72,132.64,41.38679543]
[1641837815855,6.02784258,132.72,132.62,4.0]
[1641837816352,6.02784258,132.72,132.61,42.03103459]
[1641837816553,10.02784258,132.72,132.61,38.03103459]
[1641837816754,6.02784258,132.72,132.61,38.03103459]
[1641837816954,7.53863551,132.71,132.62,10.36624459]
[1641837817155,4.26692108,132.73,132.68,27.66479]
[1641837817556,4.26692108,132.73,132.66,35.19774669]
[1641837817856,6.02787489,132.72,132.64,7.53437559]
[1641837818256,6.02787489,132.72,132.63,7.5349433]
[1641837818661,10.29453909,132.72,132.63,7.5349433]
[1641837818959,10.29453909,132.72,132.61,45.38679543]
[1641837819157,37.95932909,132.72,132.64,27.66479]
[1641837819758,6.02821697,132.71,132.62,27.66479]
[1641837820459,31.9314542,132.72,132.62,27.66479]
[1641837821261,27.66479,132.7,132.62,27.66479]
[1641837822259,27.66479,132.7,132.6,7.53636295]
[1641837822661,6.02964067,132.68,132.6,7.53636295]
[1641837823364,33.69443067,132.68,132.6,7.53636295]
[1641837823562,27.66479,132.7,132.6,7.53636295]
[1641837823763,27.66479,132.7,132.62,7.5355111]
[1641837823961,4.26782827,132.71,132.62,7.5355111]
[1641837824162,4.26782827,132.71,132.6,7.53664695]
[1641837824462,4.26782827,132.71,132.61,4.0]
[1641837824863,4.26782827,132.71,132.63,1.48594421]
[1641837825063,4.26782827,132.71,132.65,4.0]
[1641837825263,4.26782827,132.71,132.66,4.0]
[1641837825464,4.26782827,132.71,132.67,27.66479]
[1641837826066,35.1997333,132.78,132.67,27.66479]
[1641837826266,11.22739317,132.83,132.71,7.53040401]
[1641837826465,7.22739317,132.83,132.71,7.53040401]
[1641837826665,4.0,132.88,132.81,7.52473757]
[1641837826865,41.38679543,132.91,132.8,7.52530383]
[1641837827265,27.66479,132.9,132.82,27.66479]
[1641837827668,31.66479,132.9,132.8,27.66479]
[1641837827865,11.5295535,132.87,132.73,30.10914566]
[1641837828065,11.52841978,132.89,132.74,7.52841978]
[1641837828265,4.0,132.87,132.74,7.52841978]
[1641837828466,4.0,132.87,132.75,4.0]
[1641837828665,4.0,132.88,132.76,4.0]
[1641837828868,4.0,132.88,132.76,11.52728641]
[1641837829165,4.0,132.89,132.76,11.52728641]
[1641837829367,27.66479,132.9,132.77,31.66479]
[1641837829767,27.66479,132.9,132.78,4.0]
[1641837829967,27.66479,132.9,132.78,1.881]
[1641837830367,31.66479,132.9,132.78,1.881]
[1641837831068,4.0,132.88,132.77,27.66479]
[1641837831268,27.66479,132.8,132.72,45.32289987]
[1641837831472,27.66479,132.82,132.72,27.66479]
[1641837831669,7.53097112,132.85,132.74,4.0]
[1641837831968,4.0,132.86,132.73,5.881]
[1641837832168,7.5295535,132.87,132.73,4.0]
[1641837832468,7.5295535,132.87,132.73,5.881]
[1641837832669,17.54872423,132.89,132.75,4.0]
[1641837833370,27.66479,132.86,132.77,27.66479]
[1641837833975,27.66479,132.86,132.78,2.42812713]
[1641837835774,7.38449251,132.84,132.78,2.42812713]
[1641837838074,7.38449251,132.84,132.78,2.42980668]
[1641837839577,6.02287638,132.83,132.78,2.42980668]
[1641837841181,7.22587443,132.86,132.78,2.42980668]
[1641837841381,7.38536715,132.83,132.81,27.66479]
[1641837841981,7.38536715,132.83,132.82,4.0]
[1641837842181,1.58570003,132.83,132.82,4.0]
[1641837842382,15.76962649,132.89,132.82,12.3]
[1641837842683,7.22241587,132.92,132.84,4.0]
[1641837842884,24.43570835,132.94,132.84,11.52303931]
[1641837843085,15.76962649,132.94,132.89,20.0]
[1641837843283,15.76962649,132.94,132.87,7.52134181]
[1641837843486,15.76962649,132.94,132.9,27.66479]
[1641837843685,15.76962649,132.99,132.91,24.0]
[1641837843884,15.76962649,132.99,132.93,24.0]
[1641837844085,15.76962649,132.99,132.91,1.879]
[1641837844684,4.0,133.01,132.91,1.879]
[1641837844886,6.0140983,133.03,132.9,27.66479]
[1641837845486,27.66479,133.01,132.9,27.66479]
[1641837845888,27.66479,133.01,132.9,31.66479]
[1641837846087,27.66479,133.01,132.91,7.51907966]
[1641837846487,7.52247339,133.0,132.9,29.54379]
[1641837846687,33.67944902,133.01,132.88,27.66479]
[1641837846891,7.5241714,132.97,132.88,27.66479]
[1641837847089,6.01606918,132.98,132.88,27.66479]
[1641837847288,4.0,132.99,132.88,27.66479]
[1641837847491,27.66479,132.98,132.88,27.66479]
[1641837847991,27.66479,132.98,132.91,3.59084334]
[1641837848191,4.261005,132.93,132.91,3.59084334]
[1641837848990,4.261005,132.93,132.91,27.59084334]
[1641837849196,35.18669756,133.01,132.91,3.59084334]
[1641837849393,7.52190756,133.01,132.91,31.25563334]
[1641837850092,11.52162467,133.01,132.91,31.25563334]
[1641837850292,4.0,133.0,132.91,3.59084334]
[1641837850893,13.53625039,133.01,132.91,3.59084334]
[1641837851093,4.0,132.96,132.91,3.59084334]
[1641837851294,11.52473757,132.96,132.91,3.59084334]
[1641837851595,31.66479,132.93,132.83,27.66479]
[1641837851793,6.01913365,132.91,132.83,27.66479]
[1641837852195,10.01913365,132.91,132.83,27.66479]
[1641837852798,6.01913365,132.91,132.83,27.66479]
[1641837854702,27.66479,132.93,132.83,27.66479]
[1641837856005,27.66479,132.93,132.83,51.66479]
[1641837856306,34.88587055,132.95,132.85,24.0]
[1641837856505,34.88587055,132.95,132.86,4.0]
[1641837856506,27.66479,132.95,132.86,4.0]
[1641837856704,27.66479,132.95,132.84,1.881]
[1641837857105,2.82787225,132.9,132.84,1.881]
[1641837857304,2.82787225,132.9,132.85,24.0]
[1641837857905,2.82787225,132.9,132.84,1.881]
[1641837858104,2.82787225,132.9,132.83,47.66479]
[1641837858306,2.82787225,132.9,132.83,51.66479]
[1641837858505,2.82787225,132.9,132.83,47.66479]
[1641837858907,2.82787225,132.9,132.84,4.0]
[1641837859108,7.225e-05,132.9,132.89,24.0]
[1641837859308,7.52219046,133.0,132.89,24.0]
[1641837859508,35.18698046,133.0,132.91,27.66479]
[1641837859908,43.43441649,133.0,132.91,27.66479]
[1641837860708,43.43441649,133.0,132.89,35.18500057]
[1641837860910,6.01606392,132.98,132.89,7.52021057]
[1641837861511,27.66479,132.96,132.89,7.52021057]
[1641837862410,6.01606392,132.98,132.89,31.52021057]
[1641837862610,15.76962649,133.01,132.89,31.52021057]
[1641837862810,15.76962649,133.01,132.89,24.0]
[1641837863010,15.76962649,133.01,132.93,7.5179491]
[1641837863212,15.76962649,133.01,132.9,30.07179642]
[1641837863213,15.76962649,133.01,132.91,31.51879699]
[1641837863411,15.76962649,133.01,132.91,7.51879699]
[1641837863611,6.01429046,133.02,132.89,1.879]
[1641837863612,45.20013943,133.02,132.89,1.879]
[1641837863810,6.01514065,133.0,132.87,7.52105897]
[1641837864211,6.01514065,133.0,132.87,31.52105897]
[1641837864411,6.01514065,133.0,132.87,7.52105897]
[1641837864713,2.71379761,132.99,132.88,4.0]
[1641837864915,2.71379761,132.99,132.89,24.0]
[1641837865110,2.71379761,132.99,132.89,20.0]
[1641837865512,6.01514065,133.0,132.91,35.18386966]
[1641837865912,6.01514065,133.0,132.91,59.18386966]
[1641837866110,6.01514065,133.0,132.91,55.18386966]
[1641837866711,6.01514065,133.0,132.91,47.66479]
[1641837867111,27.66479,133.02,132.93,20.0]
[1641837867313,15.76962649,133.03,132.93,27.51766652]
[1641837867515,15.76962649,133.03,132.97,27.66479]
[1641837868317,27.66479,133.04,132.97,27.66479]
[1641837869319,2.71717963,133.03,132.95,27.66479]
[1641837869517,27.66479,133.02,132.93,27.66479]
[1641837870119,2.71717963,133.01,132.93,27.66479]
[1641837871020,15.76962649,133.0,132.93,27.66479]
[1641837872320,15.76962649,133.0,132.94,20.0]
[1641837872519,15.76962649,133.0,132.98,4.25959514]
[1641837872721,2.71717963,133.01,132.98,4.25959514]
[1641837873320,2.71717963,133.01,132.98,24.25959514]
[1641837873520,7.963e-05,133.01,132.98,24.25959514]
[1641837873720,41.38679543,133.05,133.0,27.66479]
[1641837873921,41.38679543,133.05,132.98,31.92438514]
[1641837874121,44.10921159,133.05,132.98,31.92438514]
[1641837874322,18.59027005,133.05,132.98,31.92438514]
[1641837874721,18.59027005,133.05,132.98,4.25959514]
[1641837874922,4.0,133.02,132.98,4.25959514]
[1641837875720,27.66479,133.0,132.98,4.25959514]
[1641837876522,27.66479,133.0,132.91,31.66479]
[1641837876723,27.66479,133.0,132.99,4.25930378]
[1641837877421,27.66479,133.0,132.91,27.66479]
[1641837877422,33.67987925,133.0,132.91,27.66479]
[1641837877623,27.66479,132.98,132.91,27.66479]
[1641837879023,33.67987925,133.0,132.91,27.66479]
[1641837880525,27.66479,133.0,132.91,27.66479]
[1641837881929,14.73698039,133.03,132.91,27.66479]
[1641837882129,41.38679543,133.04,132.95,7.51653638]
[1641837882529,41.38679543,133.04,132.92,81.46443932]
[1641837882730,14.73368726,133.06,132.92,4.26086252]
[1641837883733,83.78527269,133.06,132.96,27.66479]
[1641837884532,10.78628324,133.05,132.96,27.66479]
[1641837884733,7.52049334,133.03,132.92,4.26086252]
[1641837885232,6.01456082,133.02,132.92,4.26086252]
[1641837885635,41.38679543,133.03,132.94,27.66479]
[1641837886035,41.38679543,133.03,132.94,35.18217395]
[1641837886334,10.78628324,133.04,132.94,35.18217395]
[1641837886735,10.78628324,133.04,132.96,4.25961167]
[1641837887137,6.01443807,133.02,132.96,4.25961167]
[1641837887338,6.01533951,133.0,132.96,1.167e-05]
[1641837887737,27.66479,132.99,132.96,1.167e-05]
[1641837888339,99.11169,133.01,132.96,1.167e-05]
[1641837888540,27.66479,133.01,132.96,1.167e-05]
[1641837890545,33.67969985,133.01,132.96,1.167e-05]
[1641837890742,13.53953018,132.98,132.87,1.879]
[1641837890944,13.53953018,132.98,132.86,41.38679543]
[1641837891142,6.01750109,132.95,132.83,48.91011773]
[1641837891642,27.66479,132.93,132.83,76.57490773]
[1641837892446,27.66479,132.93,132.83,35.1881123]
[1641837892745,27.66479,132.93,132.91,4.26032026]
[1641837893746,27.66479,132.93,132.91,2.026e-05]
[1641837894148,10.78628324,132.94,132.91,2.026e-05]
[1641837894550,27.66479,132.95,132.91,2.026e-05]
[1641837896452,27.66479,132.95,132.85,27.66479]
[1641837896651,2.83101938,132.92,132.85,27.66479]
[1641837897053,2.83101938,132.92,132.85,38.05510557]
[1641837897853,2.83101938,132.92,132.89,27.66479]
[1641837898252,27.66479,133.0,132.89,27.66479]
[1641837898454,41.38679543,133.01,132.89,27.66479]
[1641837898653,41.38679543,133.01,132.89,40.22950319]
[1641837899653,16.1814944,133.02,132.89,40.22950319]
[1641837899853,33.67937727,133.01,132.93,27.66479]
[1641837900053,7.52247339,133.0,132.93,27.66479]